bitfinex/quotes_BTCUSD_20250601
["timestamp","ask_amount","ask_price","bid_price","bid_amount"]
[1748741474602,1.7872314,104400.0,104390.0,1.12179636]
[1748741475055,1.7872314,104400.0,104390.0,1.13809637]
[1748741475234,1.7872314,104400.0,104390.0,1.15429637]
[1748741475615,1.7872314,104400.0,104390.0,1.15429363]
[1748741476618,1.7872314,104400.0,104390.0,1.15429317]
[1748741477200,1.7872314,104400.0,104390.0,1.15429305]
[1748741477404,1.7872314,104400.0,104390.0,1.13861977]
[1748741477623,1.7872314,104400.0,104390.0,1.12071126]
[1748741477827,1.7872314,104400.0,104390.0,1.13861956]
[1748741478208,1.7872314,104400.0,104390.0,1.12071126]
[1748741478861,1.7872314,104400.0,104390.0,1.12966548]
[1748741479039,1.7872314,104400.0,104390.0,1.14757378]
[1748741479255,1.7872314,104400.0,104390.0,1.15428934]
[1748741479612,1.7872314,104400.0,104390.0,1.15420908]
[1748741479911,1.7872314,104400.0,104390.0,1.15420881]
[1748741480649,1.7872314,104400.0,104390.0,0.7685288]
[1748741480848,1.7872314,104400.0,104390.0,1.1542088]
[1748741481108,1.7872314,104400.0,104390.0,1.14749329]
[1748741481331,1.7872314,104400.0,104390.0,1.13630093]
[1748741481549,1.7872314,104400.0,104390.0,1.15420925]
[1748741481758,1.7872314,104400.0,104390.0,1.17211818]
[1748741482891,1.7872314,104400.0,104390.0,1.1542096]
[1748741483008,1.7872314,104400.0,104390.0,1.17211814]
[1748741483389,1.7872314,104400.0,104390.0,1.16316387]
[1748741483601,1.7872314,104400.0,104390.0,1.17211893]
[1748741484231,1.7872314,104400.0,104390.0,1.17211908]
[1748741484467,1.7872314,104400.0,104390.0,1.12734518]
[1748741484684,1.7872314,104400.0,104390.0,1.13801135]
[1748741485472,1.7872314,104400.0,104390.0,1.10604014]
[1748741485702,1.7872314,104400.0,104390.0,1.09484566]
[1748741485908,1.7872314,104400.0,104390.0,0.82695405]
[1748741486132,1.7872314,104400.0,104390.0,1.12167405]
[1748741486341,1.7872314,104400.0,104390.0,1.09480599]
[1748741486548,1.7872314,104400.0,104390.0,1.12167405]
[1748741486782,1.7872314,104400.0,104390.0,1.12167522]
[1748741487200,1.7872314,104400.0,104390.0,1.10600219]
[1748741487409,1.7872314,104400.0,104390.0,1.12167624]
[1748741487788,1.7872314,104400.0,104390.0,1.12167692]
[1748741488033,1.7872314,104400.0,104390.0,1.12167718]
[1748741488450,1.7872314,104400.0,104390.0,1.11750601]
[1748741488662,1.7872314,104400.0,104390.0,1.11750685]
[1748741488865,1.7872314,104400.0,104390.0,1.09959264]
[1748741489068,1.7872314,104400.0,104390.0,1.11079162]
[1748741489310,1.7872314,104400.0,104390.0,1.117511]
[1748741489512,1.7872314,104400.0,104390.0,1.13549132]
[1748741489714,1.7872314,104400.0,104390.0,1.135492]
[1748741489937,1.7872314,104400.0,104390.0,1.11757631]
[1748741490115,1.7872314,104400.0,104390.0,1.1354985]
[1748741490260,1.7872314,104400.0,104390.0,1.13549938]
[1748741490486,1.7872314,104400.0,104390.0,0.84077938]
[1748741490719,1.7872314,104400.0,104390.0,1.13549938]
[1748741491125,1.7872314,104400.0,104390.0,1.135501]
[1748741491325,1.7872314,104400.0,104390.0,0.74986885]
[1748741491535,1.7872314,104400.0,104390.0,1.13546885]
[1748741491706,1.7872314,104400.0,104390.0,1.13546877]
[1748741491928,1.7872314,104400.0,104390.0,1.1354689]
[1748741492130,1.7872314,104400.0,104390.0,0.74986945]
[1748741492370,1.7872314,104400.0,104390.0,1.13547257]
[1748741492559,1.7872314,104400.0,104390.0,1.13548235]
[1748741492759,1.7872314,104400.0,104390.0,1.16688235]
[1748741493132,1.7872314,104400.0,104390.0,1.14894744]
[1748741493369,1.7872314,104400.0,104390.0,1.16688235]
[1748741493712,1.7872314,104400.0,104390.0,1.16688283]
[1748741494176,1.7872314,104400.0,104390.0,0.87216283]
[1748741494313,1.7872314,104400.0,104390.0,1.11536261]
[1748741494518,1.7872314,104400.0,104390.0,1.14901437]
[1748741495276,1.7872314,104400.0,104390.0,1.14901422]
[1748741495688,1.7872314,104400.0,104390.0,1.14901391]
[1748741496187,1.7872314,104400.0,104390.0,1.1490138]
[1748741496406,1.7872314,104400.0,104390.0,1.13106638]
[1748741496582,1.7872314,104400.0,104390.0,1.14901334]
[1748741497447,1.7872314,104400.0,104390.0,1.1490133]
[1748741497648,1.7872314,104400.0,104390.0,1.14003978]
[1748741497869,1.7872314,104400.0,104390.0,1.14901327]
[1748741498502,1.7872314,104400.0,104390.0,1.14901297]
[1748741499415,1.7872314,104400.0,104390.0,1.1490128]
[1748741499712,1.7872314,104400.0,104390.0,1.11536261]
[1748741499861,1.7872314,104400.0,104390.0,1.14901298]
[1748741500215,1.7872314,104400.0,104390.0,1.14228291]
[1748741500421,1.7872314,104400.0,104390.0,1.14901298]
[1748741500596,1.7872314,104400.0,104390.0,1.14901287]
[1748741500799,1.7872314,104400.0,104390.0,1.11536261]
[1748741501046,1.7872314,104400.0,104390.0,1.14901287]
[1748741501223,1.7872314,104400.0,104390.0,1.14901286]
[1748741501430,1.7872314,104400.0,104390.0,1.14901282]
[1748741501806,1.7872314,104400.0,104390.0,1.14901284]
[1748741502443,1.7872314,104400.0,104390.0,1.14901283]
[1748741503038,1.7872314,104400.0,104390.0,1.1045634]
[1748741503251,1.7872314,104400.0,104390.0,1.08009]
[1748741503652,1.7872314,104400.0,104390.0,1.10476683]
[1748741503885,1.7872314,104400.0,104390.0,1.08886689]
[1748741504403,1.7872314,104400.0,104390.0,1.07993312]
[1748741504649,1.7872314,104400.0,104390.0,1.07993321]
[1748741504870,1.7872314,104400.0,104390.0,1.07095977]
[1748741505102,1.7872314,104400.0,104390.0,1.07320313]
[1748741505325,1.7872314,104400.0,104390.0,1.05525642]
[1748741505553,1.7872314,104400.0,104390.0,1.0462828]
[1748741505793,1.7872314,104400.0,104390.0,1.07993387]
[1748741506012,1.7872314,104400.0,104390.0,1.07993386]
[1748741506236,1.7872314,104400.0,104390.0,1.06423002]
[1748741506459,1.7872314,104400.0,104390.0,1.07993384]
[1748741506608,1.7872314,104400.0,104390.0,1.07993429]
[1748741506809,1.7872314,104400.0,104390.0,1.06198674]
[1748741507047,1.7872314,104400.0,104390.0,1.07993429]
[1748741507279,1.7872314,104400.0,104390.0,1.07993445]
[1748741507631,1.7872314,104400.0,104390.0,1.07993527]
[1748741508233,1.7872314,104400.0,104390.0,1.11382086]
[1748741508696,1.7872314,104400.0,104390.0,1.08689888]
[1748741508880,1.7872314,104400.0,104390.0,1.11382086]
[1748741509445,1.7872314,104400.0,104390.0,1.10709037]
[1748741509806,1.7872314,104400.0,104390.0,1.10484687]
[1748741509973,1.7872314,104400.0,104390.0,1.08914238]
[1748741510341,1.7872314,104400.0,104390.0,1.11382085]
[1748741510523,1.7872314,104400.0,104390.0,1.10484686]
[1748741510739,1.7872314,104400.0,104390.0,1.11382123]
[1748741510983,1.7872314,104400.0,104390.0,1.11382127]
[1748741511553,1.7872314,104400.0,104390.0,1.08016839]
[1748741511711,1.7872314,104400.0,104390.0,1.11382162]
[1748741511942,1.7872314,104400.0,104390.0,1.11382156]
[1748741512637,1.7872314,104400.0,104390.0,1.11382158]
[1748741513242,1.7872314,104400.0,104390.0,1.11382141]
[1748741513427,1.7872314,104400.0,104390.0,1.0958728]
[1748741513631,1.7872314,104400.0,104390.0,1.08016839]
[1748741513873,1.7872314,104400.0,104390.0,1.10709013]
[1748741514073,1.7872314,104400.0,104390.0,1.11382054]
[1748741514309,1.7872314,104400.0,104390.0,1.08016839]
[1748741514560,1.7872314,104400.0,104390.0,1.11382055]
[1748741514910,1.7872314,104400.0,104390.0,1.11382049]
[1748741516436,1.7872314,104400.0,104390.0,1.11381993]
[1748741516571,1.7872314,104400.0,104390.0,1.10709007]
[1748741516788,1.7872314,104400.0,104390.0,1.08016839]
[1748741516979,1.7872314,104400.0,104390.0,1.11381771]
[1748741517177,1.7872314,104400.0,104390.0,1.11381754]
[1748741517753,1.7872314,104400.0,104390.0,1.11381727]
[1748741518127,1.7872314,104400.0,104390.0,1.11381672]
[1748741518336,1.7872314,104400.0,104390.0,1.08917226]
[1748741518555,1.7872314,104400.0,104390.0,1.11384754]
[1748741518751,1.7872314,104400.0,104390.0,1.08692902]
[1748741518956,1.7872314,104400.0,104390.0,1.11384768]
[1748741519154,1.7872314,104400.0,104390.0,0.8101548]
[1748741519314,1.7872314,104400.0,104390.0,0.81912819]
[1748741519529,1.7872314,104400.0,104390.0,0.71927552]
[1748741519733,1.7872314,104400.0,104390.0,1.0800401]
[1748741519960,1.7872314,104400.0,104390.0,1.11368877]
[1748741520195,1.7872314,104400.0,104390.0,1.0800401]
[1748741520607,1.7872314,104400.0,104390.0,0.7854001]
[1748741520808,1.7872314,104400.0,104390.0,1.0800401]
[1748741521004,1.7872314,104400.0,104390.0,1.11368862]
[1748741521427,1.7872314,104400.0,104390.0,1.09574274]
[1748741521636,1.7872314,104400.0,104390.0,1.11368867]
[1748741521909,1.7872314,104400.0,104390.0,1.1136887]
[1748741522146,1.7872314,104400.0,104390.0,0.7282487]
[1748741522360,1.8187314,104400.0,104390.0,0.77840244]
[1748741522583,1.8187314,104400.0,104390.0,0.64614195]
[1748741522793,1.8187314,104400.0,104390.0,0.69831242]
[1748741523018,1.91124262,104400.0,104390.0,1.06523475]
[1748741523435,1.91124262,104400.0,104390.0,1.04055615]
[1748741523650,1.91124262,104400.0,104390.0,0.64614195]
[1748741523873,1.91124262,104400.0,104390.0,0.30614195]
[1748741524098,1.93039842,104400.0,104390.0,0.63443641]
[1748741524325,1.9399765,104400.0,104390.0,0.63443641]
[1748741524553,1.93039842,104400.0,104390.0,0.33979641]
[1748741524766,1.93039842,104400.0,104390.0,0.62060433]
[1748741524985,1.93997659,104400.0,104390.0,0.62060512]
[1748741525420,1.93997659,104400.0,104390.0,0.62055754]
[1748741525637,1.93997659,104400.0,104390.0,0.58958308]
[1748741526076,1.93997659,104400.0,104390.0,0.29494308]
[1748741526524,1.93997659,104400.0,104390.0,0.26133471]
[1748741526747,1.93997659,104400.0,104390.0,0.29492166]
[1748741527213,1.93997659,104400.0,104390.0,0.27700862]
[1748741527419,1.93997659,104400.0,104390.0,0.28820427]
[1748741527632,1.92082043,104400.0,104390.0,0.29492166]
[1748741527847,1.93039842,104400.0,104390.0,0.28820427]
[1748741528057,1.93039842,104400.0,104390.0,0.29492166]
[1748741528448,1.93039842,104400.0,104390.0,0.27028724]
[1748741528699,1.93039842,104400.0,104390.0,0.27700164]
[1748741528916,1.8283093,104400.0,104390.0,0.2881923]
[1748741529135,1.83788729,104400.0,104390.0,0.57387977]
[1748741529349,1.83788729,104400.0,104390.0,0.55597471]
[1748741529794,1.83788729,104400.0,104390.0,0.27923854]
[1748741530002,1.83788729,104400.0,104390.0,0.27923902]
[1748741530213,1.83788729,104400.0,104390.0,0.26133471]
[1748741530390,1.84746537,104400.0,104390.0,0.26133471]
[1748741530600,1.84746537,104400.0,104390.0,0.28595135]
[1748741530804,1.93997659,104400.0,104390.0,0.26804835]
[1748741531014,1.93039851,104400.0,104390.0,0.26133471]
[1748741531364,1.93039851,104400.0,104390.0,0.29490014]
[1748741531574,1.91124262,104400.0,104390.0,0.29490012]
[1748741531775,1.92082043,104400.0,104390.0,0.2949]
[1748741531968,1.93039842,104400.0,104390.0,0.27699857]
[1748741532169,1.92082043,104400.0,104390.0,0.29490013]
[1748741532369,1.92082043,104400.0,104390.0,0.29488957]
[1748741532803,1.90452043,104400.0,104390.0,0.29488571]
[1748741533005,1.90452043,104400.0,104390.0,0.29488568]
[1748741533276,1.88932043,104400.0,104390.0,0.29488169]
[1748741533498,1.88932043,104400.0,104390.0,0.2792246]
[1748741533702,1.88932043,104400.0,104390.0,0.26133471]
[1748741533906,1.88932043,104400.0,104390.0,0.27027968]
[1748741534121,1.88932043,104400.0,104390.0,0.26133471]
[1748741534319,1.87974262,104400.0,104390.0,0.29487825]
[1748741534527,1.87974262,104400.0,104390.0,0.29487673]
[1748741535367,1.87974262,104400.0,104390.0,0.29487422]
[1748741535576,1.87974262,104400.0,104390.0,0.2948707]
[1748741535777,1.87974262,104400.0,104390.0,0.28592764]
[1748741536164,1.87974262,104400.0,104390.0,0.29487056]
[1748741536371,1.87974262,104400.0,104390.0,0.26133471]
[1748741536559,1.87974262,104400.0,104390.0,0.29486741]
[1748741536862,1.87974262,104400.0,104390.0,0.29486746]
[1748741537034,1.87974262,104400.0,104390.0,0.29486748]
[1748741537257,1.87974262,104400.0,104390.0,0.29486753]
[1748741537504,1.87974262,104400.0,104390.0,0.27698158]
[1748741537720,1.87974262,104400.0,104390.0,0.29486372]
[1748741537941,1.87974262,104400.0,104390.0,0.27698158]
[1748741538150,1.87974262,104400.0,104390.0,0.29486372]
[1748741538354,1.87974262,104400.0,104390.0,0.29486289]
[1748741538563,1.87974262,104400.0,104390.0,0.27027536]
[1748741538779,1.87974262,104400.0,104390.0,0.29486209]
[1748741539005,1.87974262,104400.0,104390.0,0.27921597]
[1748741539249,1.87974262,104400.0,104390.0,0.29486158]
[1748741539475,1.87974262,104400.0,104390.0,0.29486043]
[1748741539849,1.88932043,104400.0,104390.0,0.29486095]
[1748741540750,1.88932043,104400.0,104390.0,0.2881557]
[1748741540878,1.88932043,104400.0,104390.0,0.29486181]
[1748741541079,1.88932043,104400.0,104390.0,0.28592125]
[1748741541328,1.88932043,104400.0,104390.0,0.29486181]
[1748741541532,1.88932043,104400.0,104390.0,0.29486339]
[1748741541732,1.88932043,104400.0,104390.0,0.27921668]
[1748741541935,1.88932043,104400.0,104390.0,0.29486354]
[1748741542217,1.87974262,104400.0,104390.0,0.26133471]
[1748741542419,1.88932043,104400.0,104390.0,0.29486452]
[1748741542658,1.88932033,104400.0,104390.0,0.29486662]
[1748741542824,1.89889832,104400.0,104390.0,0.29486662]
[1748741543021,1.89889823,104400.0,104390.0,0.29486662]
[1748741543269,1.89889823,104400.0,104390.0,0.28816024]
[1748741543446,1.89889823,104400.0,104390.0,0.29486704]
[1748741543654,1.89889823,104400.0,104390.0,0.29487048]
[1748741543857,2.09046994,104400.0,104390.0,0.26900588]
[1748741544142,2.09046994,104400.0,104390.0,0.27027936]
[1748741544365,2.38514994,104400.0,104390.0,0.04100822]
[1748741544602,2.46641186,104400.0,104390.0,0.04100822]
[1748741544813,2.56226616,104400.0,104390.0,0.04100822]
[1748741545245,2.56226616,104400.0,104390.0,0.03586068]
[1748741551133,0.02874223,104370.0,104360.0,0.20122578]
[1748741551358,0.43669324,104370.0,104360.0,0.21080735]
[1748741551528,0.43489653,104370.0,104360.0,0.21080735]
[1748741551728,0.43489653,104370.0,104360.0,0.21752443]
[1748741551927,0.43489653,104370.0,104360.0,0.21752454]
[1748741552167,0.43489653,104370.0,104360.0,0.2197636]
[1748741552385,0.44447764,104370.0,104360.0,0.23706278]
[1748741552626,0.42531551,104370.0,104360.0,0.22138919]
[1748741552856,0.62652292,104370.0,104360.0,0.21790002]
[1748741553268,0.62652292,104370.0,104360.0,0.24602079]
[1748741553479,0.62652292,104370.0,104360.0,0.23706398]
[1748741553929,0.61694218,104370.0,104360.0,0.0166736]
[1748741554151,0.60736135,104370.0,104360.0,0.0156736]
[1748741554354,0.60736135,104370.0,104360.0,0.21690002]
[1748741554983,0.59778024,104370.0,104360.0,0.21690002]
[1748741555198,0.59878024,104370.0,104360.0,0.23270002]
[1748741555622,0.59878024,104370.0,104360.0,0.24850002]
[1748741556845,0.59878024,104370.0,104360.0,0.25745678]
[1748741557023,0.59878024,104370.0,104360.0,0.24850002]
[1748741557375,0.59878024,104370.0,104360.0,0.25745681]
[1748741557568,0.59878024,104370.0,104360.0,0.24850002]
[1748741557794,0.59878024,104370.0,104360.0,0.25745682]
[1748741558115,0.59878024,104370.0,104360.0,0.25808195]
[1748741558335,0.59878024,104370.0,104360.0,0.26703827]
[1748741558547,0.59878024,104370.0,104360.0,0.25745634]
[1748741558757,0.59878024,104370.0,104360.0,0.25745636]
[1748741558967,0.59878024,104370.0,104360.0,0.24850002]
[1748741559119,0.59878024,104370.0,104360.0,0.25745635]
[1748741559327,0.59878024,104370.0,104360.0,0.24850002]
[1748741560463,0.59878024,104370.0,104360.0,0.23270002]
[1748741560641,0.59878024,104370.0,104360.0,0.22585633]
[1748741560848,0.59878024,104370.0,104360.0,0.21690002]
[1748741561053,0.59878024,104370.0,104360.0,0.22585635]
[1748741561289,0.59878024,104370.0,104360.0,0.22648205]
[1748741563241,0.59878024,104370.0,104360.0,0.23543761]
[1748741563443,0.59878024,104370.0,104360.0,0.2354368]
[1748741563652,0.59878024,104370.0,104360.0,0.22648205]
[1748741563856,0.59878024,104370.0,104360.0,0.23606398]
[1748741564283,0.59878024,104370.0,104360.0,0.22648205]
[1748741564700,0.38416,104370.0,104360.0,0.24564546]
[1748741564903,0.38416,104370.0,104360.0,0.63621976]
[1748741565568,0.38416,104370.0,104360.0,0.64293379]
[1748741565767,0.38416,104370.0,104360.0,0.64293381]
[1748741565974,0.422576,104370.0,104360.0,0.64517183]
[1748741566156,0.422576,104370.0,104360.0,0.63621976]
[1748741567090,0.422576,104370.0,104360.0,0.64293318]
[1748741567292,0.422576,104370.0,104360.0,0.65859615]
[1748741567497,0.422576,104370.0,104360.0,0.64293318]
[1748741567921,0.422576,104370.0,104360.0,0.65188346]
[1748741568199,0.422576,104370.0,104360.0,0.64293318]
[1748741569435,0.38416,104370.0,104360.0,0.64293318]
[1748741570513,0.38416,104370.0,104360.0,0.6518822]
[1748741570717,0.38416,104370.0,104360.0,0.64293318]
[1748741570923,0.38416,104370.0,104360.0,0.98293318]
[1748741571681,0.38416,104370.0,104360.0,0.99188232]
[1748741571917,0.422576,104370.0,104360.0,0.98964503]
[1748741572117,0.422576,104370.0,104360.0,0.99859417]
[1748741572320,0.422576,104370.0,104360.0,0.99855417]
[1748741572939,0.422576,104370.0,104360.0,0.99184232]
[1748741574617,0.422576,104370.0,104360.0,0.98289318]
[1748741579861,0.422576,104370.0,104360.0,0.98285318]
[1748741586310,0.422576,104370.0,104360.0,0.68821318]
[1748741586525,0.422576,104370.0,104360.0,0.98285318]
[1748741588721,0.422576,104370.0,104360.0,0.68821318]
[1748741588935,0.44173721,104370.0,104360.0,0.98281318]
[1748741589087,0.44173712,104370.0,104360.0,0.98281318]
[1748741589809,0.43215647,104370.0,104360.0,0.98281318]
[1748741590015,0.44173712,104370.0,104360.0,0.98281318]
[1748741590831,0.45131795,104370.0,104360.0,0.68821318]
[1748741591165,0.44173712,104370.0,104360.0,0.68821318]
[1748741592638,0.44603712,104370.0,104360.0,0.64391318]
[1748741592847,0.44603712,104370.0,104360.0,0.63961318]
[1748741593048,0.426876,104370.0,104360.0,0.63961318]
[1748741594724,0.43645647,104370.0,104360.0,0.63961318]
[1748741594886,0.44603712,104370.0,104360.0,0.63961318]
[1748741595306,0.43645647,104370.0,104360.0,0.63961318]
[1748741595659,0.44603703,104370.0,104360.0,0.63961318]
[1748741595902,0.44603703,104370.0,104360.0,0.18459547]
[1748741595903,0.95142555,104370.0,104360.0,0.18459547]
[1748741596108,0.93226425,104370.0,104360.0,0.00671342]
[1748741596312,0.93226425,104370.0,104360.0,0.21752186]
[1748741596830,0.93226425,104370.0,104360.0,0.01629563]
[1748741597032,0.93226425,104370.0,104360.0,0.00671342]
[1748741597033,0.92268323,104370.0,104360.0,0.00671342]
[1748741597464,1.01348323,104370.0,104360.0,0.00671342]
[1748741598902,1.00918323,104370.0,104360.0,0.00671342]
[1748741603082,0.71458323,104370.0,104360.0,0.00671342]
[1748741603296,1.00918323,104370.0,104360.0,0.00671342]
[1748741606128,0.62378323,104370.0,104360.0,0.20793984]
[1748741606339,1.00918323,104370.0,104360.0,0.20793984]
[1748741607329,0.62378323,104370.0,104360.0,0.20793984]
[1748741607553,1.00918323,104370.0,104360.0,0.20793984]
[1748741609505,1.00918323,104370.0,104360.0,0.00671342]
[1748741614887,1.10503753,104370.0,104360.0,0.00671342]
[1748741616256,0.98988881,104370.0,104360.0,0.21752168]
[1748741616429,0.9994701,104370.0,104360.0,0.21752168]
[1748741616631,0.98988936,104370.0,104360.0,0.20793984]
[1748741618284,0.98988936,104370.0,104360.0,0.21752187]
[1748741618722,0.40332213,104370.0,104360.0,0.21752187]
[1748741618929,0.60452936,104370.0,104360.0,0.22710371]
[1748741619100,1.04938253,104370.0,104360.0,0.22710371]
[1748741619401,1.03980151,104370.0,104360.0,0.22710371]
[1748741621829,1.03980151,104370.0,104360.0,0.25318546]
[1748741622377,1.03980151,104370.0,104360.0,0.24360371]
[1748741622782,1.03980151,104370.0,104360.0,0.25318546]
[1748741622989,1.03976151,104370.0,104360.0,0.25318546]
[1748741625047,1.03976151,104370.0,104360.0,0.24360371]
[1748741625229,1.03976151,104370.0,104360.0,0.26000371]
[1748741625434,1.03976151,104370.0,104360.0,0.26896113]
[1748741625658,1.03976151,104370.0,104360.0,0.26898096]
[1748741626112,1.03976151,104370.0,104360.0,0.26898097]
[1748741626314,1.03976151,104370.0,104360.0,0.27571391]
[1748741626521,1.03976151,104370.0,104360.0,0.26613207]
[1748741626726,1.03976151,104370.0,104360.0,0.27571521]
[1748741627826,1.03976151,104370.0,104360.0,0.27571543]
[1748741628263,1.03976151,104370.0,104360.0,0.2757156]
[1748741628863,1.03976151,104370.0,104360.0,0.27571558]
[1748741629363,1.03976151,104370.0,104360.0,0.27571556]
[1748741629505,1.03976151,104370.0,104360.0,0.2600038]
[1748741629707,1.03976151,104370.0,104360.0,0.2689819]
[1748741629926,1.03976151,104370.0,104360.0,0.25939997]
[1748741630122,1.02059911,104370.0,104360.0,0.0224251]
[1748741631134,1.02059911,104370.0,104360.0,0.02242543]
[1748741631553,1.02059911,104370.0,104360.0,0.00671342]
[1748741632568,1.02059911,104370.0,104360.0,0.015692]
[1748741632765,1.02059911,104370.0,104360.0,0.00671342]
[1748741632969,1.02059911,104370.0,104360.0,0.02467061]
[1748741633743,1.02059911,104370.0,104360.0,0.02466908]
[1748741634329,1.02059911,104370.0,104360.0,0.02466907]
[1748741635019,1.11645341,104370.0,104360.0,0.02466907]
[1748741635473,1.11645341,104370.0,104360.0,0.02466864]
[1748741635662,1.11645341,104370.0,104360.0,0.02466858]
[1748741636041,1.11645341,104370.0,104360.0,0.02466808]
[1748741637636,1.11645341,104370.0,104360.0,0.02466766]
[1748741638092,1.11645341,104370.0,104360.0,0.0246674]
[1748741638900,1.11645341,104370.0,104360.0,0.02466722]
[1748741639376,1.11645341,104370.0,104360.0,0.015692]
[1748741639591,1.11645341,104370.0,104360.0,0.02466738]
[1748741640130,1.11645341,104370.0,104360.0,0.02466722]
[1748741640727,1.11645341,104370.0,104360.0,0.0246672]
[1748741641385,1.11645341,104370.0,104360.0,0.015692]
[1748741642446,1.11545341,104370.0,104360.0,0.015692]
[1748741642894,1.11745341,104370.0,104360.0,0.015692]
[1748741647349,1.11745341,104370.0,104360.0,0.015692]
[1748741650335,1.11745341,104370.0,104360.0,0.047392]
[1748741652899,0.20122633,104360.0,104350.0,0.0317]
[1748741653108,0.20122633,104360.0,104330.0,0.00047921]
[1748741653109,0.21084849,104340.0,104330.0,0.00047921]
[1748741653313,0.2012649,104340.0,104330.0,0.01011294]
[1748741653502,0.42159001,104340.0,104330.0,0.01011294]
[1748741653699,0.50451718,104340.0,104330.0,0.22098182]
[1748741653928,0.52326259,104340.0,104330.0,0.23056633]
[1748741654169,0.52326259,104340.0,104330.0,0.22098182]
[1748741654468,0.52326259,104340.0,104330.0,0.23056633]
[1748741655139,0.53284581,104340.0,104330.0,0.24015074]
[1748741655337,0.44033431,104340.0,104330.0,0.27185009]
[1748741656331,0.44033422,104340.0,104330.0,0.27185009]
[1748741656909,0.43075063,104340.0,104330.0,0.27185009]
[1748741657106,0.44033413,104340.0,104330.0,0.27185009]
[1748741657902,0.44991781,104340.0,104330.0,0.27185009]
[1748741658101,0.54242903,104340.0,104330.0,0.27185009]
[1748741659805,0.53284535,104340.0,104330.0,0.27185009]
[1748741660266,0.54242903,104340.0,104330.0,0.27185009]
[1748741660695,0.53284535,104340.0,104330.0,0.27185009]
[1748741661650,0.41158392,104340.0,104330.0,0.27185009]
[1748741662486,0.39283851,104340.0,104330.0,0.27185009]
[1748741662906,0.41200532,104340.0,104330.0,0.27185009]
[1748741663115,0.42158909,104340.0,104330.0,0.27185009]
[1748741663337,1.03936069,104340.0,104310.0,0.0312]
[1748741663550,0.21088928,104320.0,104310.0,0.0312]
[1748741663790,0.21088928,104320.0,104310.0,0.0312935]
[1748741663997,0.59404928,104320.0,104310.0,0.23261647]
[1748741664204,0.50442795,104320.0,104310.0,0.23658925]
[1748741664414,0.76836,104320.0,104310.0,0.2301756]
[1748741664635,0.38316,104320.0,104310.0,0.2301756]
[1748741665054,0.38316,104320.0,104310.0,0.23913061]
[1748741665261,0.38316,104320.0,104310.0,0.33498464]
[1748741665471,0.38316,104320.0,104310.0,0.3576299]
[1748741665790,0.45379934,104320.0,104310.0,0.3665849]
[1748741666001,0.45379934,104320.0,104310.0,0.3576299]
[1748741666207,0.38316,104320.0,104310.0,0.3576299]
[1748741667002,0.38316,104320.0,104310.0,0.36658495]
[1748741667178,0.38316,104320.0,104310.0,0.36658491]
[1748741667389,0.38316,104320.0,104310.0,0.3665849]
[1748741667621,0.38316,104320.0,104310.0,0.36658492]
[1748741667839,0.38316,104320.0,104310.0,0.3576299]
[1748741668195,0.38316,104320.0,104310.0,0.36658528]
[1748741668424,0.38316,104320.0,104310.0,0.3576299]
[1748741668651,0.38316,104320.0,104310.0,0.36658562]
[1748741668881,0.4537993,104320.0,104310.0,0.3576299]
[1748741669102,0.4537993,104320.0,104310.0,0.36658562]
[1748741669551,0.4537993,104320.0,104310.0,0.36658569]
[1748741670001,0.4537993,104320.0,104310.0,0.36658618]
[1748741670462,0.38316,104320.0,104310.0,0.36658609]
[1748741671021,0.38316,104320.0,104310.0,0.36658601]
[1748741671189,0.38316,104320.0,104310.0,0.36658602]
[1748741671794,0.38316,104320.0,104310.0,0.3576299]
[1748741671920,0.38316,104320.0,104310.0,0.3665862]
[1748741672371,0.38316,104320.0,104310.0,0.36658622]
[1748741672574,0.47567122,104320.0,104310.0,0.36658622]
[1748741672935,0.47567122,104320.0,104310.0,0.36658659]
[1748741673594,0.47567122,104320.0,104310.0,0.3665866]
[1748741674353,0.47567122,104320.0,104310.0,0.3576299]
[1748741674564,0.47567122,104320.0,104310.0,0.3665871]
[1748741674760,0.47567122,104320.0,104310.0,0.36658716]
[1748741674961,0.38316,104320.0,104310.0,0.36658716]
[1748741675549,0.38316,104320.0,104310.0,0.36658718]
[1748741675756,0.38316,104320.0,104310.0,0.35028718]
[1748741675936,0.38316,104320.0,104310.0,0.33498718]
[1748741676138,0.38316,104320.0,104310.0,0.33498805]
[1748741676604,0.38316,104320.0,104310.0,0.3260299]
[1748741676777,0.38316,104320.0,104310.0,0.33498805]
[1748741677327,0.38316,104320.0,104310.0,0.3260299]
[1748741677552,0.38316,104320.0,104310.0,0.33498912]
[1748741677757,0.47292286,104320.0,104310.0,0.34424441]
[1748741677959,0.47292286,104320.0,104310.0,0.34424576]
[1748741678536,0.49209362,104320.0,104310.0,0.33528519]
[1748741678758,0.49209362,104320.0,104310.0,0.24839171]
[1748741679190,0.50167932,104320.0,104310.0,0.24839324]
[1748741679412,0.51126511,104320.0,104310.0,0.24325102]
[1748741679631,0.50167932,104320.0,104310.0,0.24325103]
[1748741679851,0.70298299,104320.0,104310.0,0.24325121]
[1748741680071,0.5112652,104320.0,104310.0,0.25283746]
[1748741680316,1.07851775,104320.0,104310.0,0.22407843]
[1748741680764,1.07851775,104320.0,104310.0,0.22407905]
[1748741681447,1.06893223,104320.0,104310.0,0.21449252]
[1748741681684,1.06893223,104320.0,104310.0,0.22407923]
[1748741681907,1.06893223,104320.0,104310.0,0.23366563]
[1748741682353,1.07293223,104320.0,104310.0,0.01316933]
[1748741682488,1.07293223,104320.0,104310.0,0.02275613]
[1748741682934,1.07293223,104320.0,104310.0,0.22407901]
[1748741683137,1.07293223,104320.0,104310.0,0.01316933]
[1748741683311,1.07293223,104320.0,104310.0,0.01317253]
[1748741683312,1.06334653,104320.0,104310.0,0.01317253]
[1748741683722,1.06334653,104320.0,104310.0,0.21449541]
[1748741684136,1.06334653,104320.0,104310.0,0.22999541]
[1748741684341,1.06334653,104320.0,104310.0,0.24499541]
[1748741684616,1.06334653,104320.0,104310.0,0.24499513]
[1748741685154,1.06334653,104320.0,104310.0,0.04367225]
[1748741685346,1.06334653,104320.0,104310.0,0.24499522]
[1748741685982,1.06334653,104320.0,104310.0,0.24499519]
[1748741686194,1.06334653,104320.0,104310.0,0.26416843]
[1748741686629,1.07293214,104320.0,104310.0,0.27375487]
[1748741686979,1.07293214,104320.0,104310.0,0.27375535]
[1748741687175,0.88121435,104320.0,104310.0,0.28334136]
[1748741687991,1.07293214,104320.0,104310.0,0.28334136]
[1748741688219,1.07293214,104320.0,104310.0,0.28334176]
[1748741688518,1.07293214,104320.0,104310.0,0.27437547]
[1748741689264,1.07293214,104320.0,104310.0,0.28334247]
[1748741689523,1.17383214,104320.0,104310.0,0.27375622]
[1748741689740,1.07293214,104320.0,104310.0,0.26478922]
[1748741689931,1.07293214,104320.0,104310.0,0.27375714]
[1748741690070,1.07293214,104320.0,104310.0,0.27437556]
[1748741690452,0.88121435,104320.0,104310.0,0.27437556]
[1748741690650,0.88121435,104320.0,104310.0,0.28334469]
[1748741690887,0.88121435,104320.0,104310.0,0.27437556]
[1748741691062,0.88121435,104320.0,104310.0,0.2833447]
[1748741691502,0.88121435,104320.0,104310.0,0.28334469]